bitfinex/quotes_BTCUSD_20250224
["timestamp","ask_amount","ask_price","bid_price","bid_amount"]
[1740419750836,0.17361666,94912.0,94909.0,0.0142422]
[1740419751705,0.17161666,94912.0,94909.0,0.0142422]
[1740419752135,0.17361666,94912.0,94909.0,0.0142422]
[1740419752306,0.17461666,94912.0,94909.0,0.0142422]
[1740419752523,0.27726235,94912.0,94909.0,0.0142422]
[1740419752727,0.35993822,94912.0,94909.0,0.0142422]
[1740419752927,0.35493822,94912.0,94909.0,0.0142422]
[1740419753247,0.35993822,94912.0,94909.0,0.0142422]
[1740419753455,0.35793822,94912.0,94909.0,0.0142422]
[1740419753657,0.35493822,94912.0,94909.0,0.0142422]
[1740419754001,0.35893822,94912.0,94909.0,0.0142422]
[1740419754900,0.36093822,94912.0,94909.0,0.0142422]
[1740419755117,0.4448032,94912.0,94909.0,0.0142422]
[1740419755330,0.01454085,94911.0,94909.0,2e-07]
[1740419755544,0.32258485,94910.0,94909.0,2e-07]
[1740419755743,0.42523054,94910.0,94909.0,2e-07]
[1740419755948,0.52787623,94910.0,94909.0,2e-07]
[1740419756982,0.43183102,94910.0,94909.0,2e-07]
[1740419758128,0.43783102,94910.0,94909.0,2e-07]
[1740419758480,0.43123054,94910.0,94909.0,2e-07]
[1740419759124,0.43823054,94910.0,94909.0,2e-07]
[1740419760069,0.308074,94892.0,94891.0,0.0455]
[1740419760271,0.41071969,94892.0,94891.0,0.0455]
[1740419761255,0.41071969,94892.0,94891.0,0.0463495]
[1740419761454,0.41071969,94892.0,94891.0,0.04678117]
[1740419761847,0.41171969,94892.0,94891.0,0.04678117]
[1740419762048,0.51436538,94892.0,94891.0,0.04678117]
[1740419762247,0.41171969,94892.0,94891.0,0.04678117]
[1740419762463,0.159074,94892.0,94891.0,0.04678117]
[1740419762686,0.158074,94892.0,94891.0,0.04678117]
[1740419763023,0.159074,94892.0,94891.0,0.04678117]
[1740419764645,0.41071969,94892.0,94891.0,0.04678117]
[1740419764843,0.51436538,94892.0,94891.0,0.00128117]
[1740419765213,0.51336538,94892.0,94891.0,0.00128117]
[1740419765742,0.51436538,94892.0,94891.0,0.00128117]
[1740419766124,0.52890623,94892.0,94891.0,1.7e-07]
[1740419768496,0.308074,94892.0,94891.0,1.7e-07]
[1740419768673,0.01357566,94912.0,94892.0,0.01258708]
[1740419768876,0.158072,94893.0,94892.0,0.05508708]
[1740419769330,0.158072,94893.0,94892.0,0.05108708]
[1740419769541,0.15,94907.0,94892.0,0.04608708]
[1740419769675,0.158072,94893.0,94892.0,0.04608708]
[1740419769869,0.02054177,94912.0,94895.0,0.0776]
[1740419770077,0.12318746,94912.0,94895.0,0.0776]
[1740419770315,0.15,94911.0,94895.0,0.0746]
[1740419770509,0.158067,94896.0,94895.0,0.0746]
[1740419771487,0.158067,94896.0,94895.0,0.0736]
[1740419771941,0.158067,94896.0,94895.0,0.0746]
[1740419772150,0.158067,94896.0,94895.0,0.0796]
[1740419772345,0.158067,94896.0,94895.0,0.0786]
[1740419772588,0.158067,94896.0,94895.0,0.1277]
[1740419773656,0.210753,94898.0,94895.0,0.1277]
[1740419773864,0.158067,94896.0,94895.0,0.1277]
[1740419774118,0.158067,94896.0,94895.0,0.1337]
[1740419774293,0.158067,94896.0,94895.0,0.1287]
[1740419774653,0.159067,94896.0,94895.0,0.1347]
[1740419775242,0.159067,94896.0,94895.0,0.1287]
[1740419775454,0.1128018,94952.0,94947.0,0.5374104]
[1740419775653,0.1128018,94952.0,94900.0,0.02]
[1740419775654,0.158059,94901.0,94900.0,0.02]
[1740419776094,0.01363913,94931.0,94900.0,0.02]
[1740419776295,0.15803,94919.0,94906.0,0.0763]
[1740419776506,0.00773089,94920.0,94911.0,0.0486]
[1740419776708,0.00773089,94920.0,94911.0,0.04872955]
[1740419777450,0.10264569,94930.0,94911.0,0.04872955]
[1740419777561,0.01246998,94948.0,94918.0,0.04]
[1740419777769,0.007,94948.0,94928.0,0.0977]
[1740419777980,0.15,94942.0,94928.0,0.0977]
[1740419778182,0.15,94936.0,94928.0,0.0957]
[1740419778593,0.158003,94935.0,94928.0,0.0957]
[1740419778793,0.003,94931.0,94928.0,0.0957]
[1740419778997,0.003,94931.0,94928.0,0.0927]
[1740419779616,0.15,94934.0,94933.0,0.015]
[1740419780224,0.00788215,94945.0,94928.0,0.0777]
[1740419780422,0.158012,94929.0,94928.0,0.0777]
[1740419780622,0.16201,94931.0,94928.0,0.0777]
[1740419780827,0.004,94931.0,94928.0,0.0777]
[1740419781418,0.002,94929.0,94928.0,0.0777]
[1740419782233,0.158011,94930.0,94928.0,0.0787]
[1740419782591,0.160012,94929.0,94928.0,0.0777]
[1740419783037,0.002,94929.0,94928.0,0.0777]
[1740419783611,0.160012,94929.0,94928.0,0.0777]
[1740419783841,0.002,94929.0,94928.0,0.0777]
[1740419783986,0.210654,94943.0,94928.0,0.0777]
[1740419784196,0.10264569,94942.0,94928.0,0.0777]
[1740419784399,0.158009,94932.0,94928.0,0.0777]
[1740419784563,0.158019,94925.0,94924.0,0.02]
[1740419784766,0.158024,94922.0,94921.0,0.0789]
[1740419784972,0.158022,94923.0,94921.0,0.0789]
[1740419785174,0.210678,94932.0,94911.0,0.04872955]
[1740419785175,0.10264569,94922.0,94911.0,0.04872955]
[1740419785491,0.158041,94912.0,94911.0,0.04872955]
[1740419785686,0.210719,94914.0,94911.0,0.04872955]
[1740419785930,0.10264569,94922.0,94911.0,0.04872955]
[1740419786151,0.158029,94919.0,94918.0,0.02]
[1740419786493,0.001,94925.0,94918.0,0.02]
[1740419786679,0.001,94925.0,94919.0,0.015]
[1740419787745,0.001,94925.0,94903.0,0.158055]
[1740419787953,0.001,94925.0,94904.0,0.158054]
[1740419787954,0.00112943,94925.0,94904.0,0.158054]
[1740419788159,0.00012943,94925.0,94898.0,0.08407291]
[1740419788368,0.00012943,94925.0,94904.0,0.158052]
[1740419788801,0.00012943,94925.0,94899.0,0.219909]
[1740419789015,0.00012943,94925.0,94900.0,0.210747]
[1740419789162,0.00012943,94925.0,94903.0,0.158056]
[1740419789369,0.00012943,94925.0,94904.0,0.158054]
[1740419789806,0.00012943,94925.0,94901.0,0.10264569]
[1740419790001,0.158021,94924.0,94901.0,0.26070369]
[1740419790203,0.158037,94915.0,94898.0,0.08407291]
[1740419790409,0.10264569,94924.0,94898.0,0.08407291]
[1740419790785,0.10264569,94924.0,94899.0,0.0788]
[1740419791012,0.158046,94909.0,94899.0,0.0788]
[1740419791179,0.10264569,94924.0,94899.0,0.0788]
[1740419791180,0.158045,94910.0,94899.0,0.0788]
[1740419791381,0.10264569,94924.0,94899.0,0.0788]
[1740419791588,0.03134591,94923.0,94899.0,0.0788]
[1740419791788,0.10264569,94922.0,94899.0,0.0788]
[1740419792053,0.01454085,94921.0,94899.0,0.0788]
[1740419792263,0.10264569,94920.0,94899.0,0.0788]
[1740419792471,0.10264569,94920.0,94899.0,0.0878]
[1740419792674,0.158036,94915.0,94899.0,0.0828]
[1740419792854,0.10264569,94920.0,94899.0,0.0788]
[1740419792855,0.158035,94916.0,94899.0,0.0788]
[1740419793118,0.10264569,94916.0,94899.0,0.0788]
[1740419793240,0.158044,94910.0,94899.0,0.0788]
[1740419793750,0.10264569,94916.0,94899.0,0.0788]
[1740419794144,0.158038,94914.0,94899.0,0.0788]
[1740419794338,0.210682,94930.0,94899.0,0.0788]
[1740419794339,0.0823,94942.0,94900.0,0.0777]
[1740419794545,0.001,94920.0,94902.0,0.0496]
[1740419794761,0.002,94916.0,94915.0,0.158036]
[1740419794982,0.002,94916.0,94915.0,0.0777]
[1740419795183,0.15,94937.0,94915.0,0.235736]
[1740419795383,0.15,94937.0,94918.0,0.158029]
[1740419795602,0.00112943,94925.0,94920.0,0.158026]
[1740419795755,0.00112943,94925.0,94917.0,0.158032]
[1740419795962,0.00012943,94925.0,94917.0,0.158032]
[1740419796163,0.00012943,94925.0,94915.0,0.291412]
[1740419796361,0.00112943,94925.0,94918.0,0.15803]
[1740419796588,0.00112943,94925.0,94915.0,0.291413]
[1740419796790,0.00112943,94925.0,94917.0,0.158032]
[1740419796997,0.00112943,94925.0,94915.0,0.0807]
[1740419797195,0.00112943,94925.0,94917.0,0.158031]
[1740419797402,0.00112943,94925.0,94915.0,0.0807]
[1740419797580,0.00112943,94925.0,94915.0,0.0777]
[1740419797806,0.10264569,94924.0,94906.0,0.0496]
[1740419798001,0.02491836,94923.0,94902.0,0.0779]
[1740419798205,0.158046,94909.0,94902.0,0.0779]
[1740419798442,0.158031,94918.0,94902.0,0.0779]
[1740419798643,0.10264569,94922.0,94902.0,0.0779]
[1740419798799,0.158029,94919.0,94902.0,0.0779]
[1740419799021,0.10264569,94922.0,94902.0,0.0779]
[1740419799407,0.210705,94920.0,94902.0,0.0779]
[1740419799612,0.10264569,94920.0,94902.0,0.0789]
[1740419800014,0.10264569,94920.0,94905.0,0.158051]
[1740419800234,0.10264569,94920.0,94902.0,0.0789]
[1740419800612,0.158025,94922.0,94902.0,0.0789]
[1740419800810,0.10264569,94921.0,94902.0,0.0779]
[1740419800994,0.158027,94920.0,94902.0,0.0779]
[1740419801200,0.10264569,94921.0,94902.0,0.0779]
[1740419801517,0.15803,94919.0,94902.0,0.0779]
[1740419801912,0.10264569,94921.0,94902.0,0.0779]
[1740419802114,0.158029,94919.0,94902.0,0.0779]
[1740419802332,0.001,94920.0,94902.0,0.0779]
[1740419802735,0.10264569,94921.0,94902.0,0.0779]
[1740419802934,0.158031,94918.0,94902.0,0.0779]
[1740419803516,0.158027,94920.0,94902.0,0.0779]
[1740419803713,0.0016994,94924.0,94903.0,0.210741]
[1740419803938,0.0016994,94924.0,94905.0,0.0771]
[1740419804143,0.0016994,94924.0,94919.0,0.158028]
[1740419804344,0.0016994,94924.0,94906.0,0.10412062]
[1740419804345,0.0016994,94924.0,94923.0,0.236622]
[1740419804526,0.0016994,94924.0,94923.0,0.286322]
[1740419805245,0.0016994,94924.0,94923.0,0.1283]
[1740419806314,0.0016994,94924.0,94923.0,0.1313]
[1740419807681,0.0016994,94924.0,94923.0,0.289322]
[1740419808441,0.0016994,94924.0,94923.0,0.1343]
[1740419810118,0.1597204,94924.0,94923.0,0.006]
[1740419810274,0.1597204,94924.0,94877.0,0.08407291]
[1740419810275,0.15,94921.0,94895.0,0.0762494]
[1740419810479,0.158051,94906.0,94895.0,0.0762494]
[1740419810701,0.15,94911.0,94895.0,0.0762494]
[1740419810904,0.210708,94918.0,94895.0,0.0762494]
[1740419811105,0.15,94913.0,94895.0,0.0762494]
[1740419811303,0.15,94910.0,94909.0,0.0008497]
[1740419812269,0.15,94920.0,94909.0,0.0008497]
[1740419812470,0.158032,94918.0,94909.0,0.0008497]
[1740419813011,0.25264569,94920.0,94909.0,0.0008497]
[1740419813215,0.15,94919.0,94909.0,0.0018497]
[1740419813624,0.15,94919.0,94909.0,0.0038497]
[1740419813822,0.15,94919.0,94909.0,0.0018497]
[1740419814142,0.15,94917.0,94909.0,0.0018497]
[1740419814704,0.308044,94910.0,94909.0,0.0008497]
[1740419815497,0.15,94910.0,94909.0,0.0008497]
[1740419815899,0.308044,94910.0,94909.0,0.0018497]
[1740419816424,0.15,94910.0,94909.0,0.0018497]
[1740419816822,0.15,94910.0,94909.0,0.0038497]
[1740419820418,0.22024633,94924.0,94909.0,0.1341497]
[1740419820419,0.0016994,94924.0,94909.0,0.1341497]
[1740419820824,0.0016994,94924.0,94919.0,0.0811]
[1740419821028,0.15,94922.0,94909.0,0.0530497]
[1740419821233,0.210701,94921.0,94909.0,0.0520497]
[1740419821457,0.17544745,94921.0,94909.0,0.0520497]
[1740419821679,0.308044,94910.0,94909.0,0.0058497]
[1740419822106,0.15,94910.0,94909.0,0.0028497]
[1740419822872,0.308044,94910.0,94909.0,0.0008497]
[1740419823087,0.3599203,94910.0,94909.0,0.0008497]
[1740419823640,0.15,94910.0,94909.0,0.0028497]
[1740419824044,0.308044,94910.0,94909.0,0.0048497]
[1740419824591,0.15,94910.0,94909.0,0.0008497]
[1740419825375,0.308044,94910.0,94909.0,0.0018497]
[1740419826061,0.15,94910.0,94909.0,0.0018497]
[1740419826258,0.308044,94910.0,94909.0,0.0018497]
[1740419826606,0.308044,94910.0,94909.0,0.0028497]
[1740419826805,0.308044,94910.0,94909.0,0.0008497]
[1740419827019,0.48363819,94910.0,94909.0,0.0018497]
[1740419827226,0.48363819,94910.0,94909.0,0.0038497]
[1740419827427,0.50618947,94910.0,94909.0,0.003]
[1740419827632,0.55408947,94910.0,94909.0,0.001]
[1740419827833,0.308062,94899.0,94898.0,0.0008497]
[1740419828051,0.46258759,94899.0,94898.0,0.0008497]
[1740419829340,0.41070769,94899.0,94898.0,0.0008497]
[1740419829742,0.15,94899.0,94898.0,0.0008497]
[1740419829952,0.308062,94899.0,94898.0,0.0008497]
[1740419830129,0.309062,94899.0,94898.0,0.0008497]
[1740419830329,0.312062,94899.0,94898.0,0.0008497]
[1740419830650,0.309062,94899.0,94898.0,0.0008497]
[1740419831353,0.43800871,94899.0,94898.0,0.0008497]
[1740419832723,0.41170769,94899.0,94898.0,0.0008497]
[1740419834380,0.10364569,94899.0,94898.0,0.0008497]
[1740419834596,0.0059,94897.0,94829.0,0.0768]
[1740419834792,0.11046756,94876.0,94829.0,0.0768]
[1740419835001,0.158122,94863.0,94830.0,0.08407291]
[1740419835201,0.26076769,94863.0,94830.0,0.08407291]
[1740419835402,0.00782187,94876.0,94857.0,0.0768]
[1740419835618,0.10264569,94875.0,94857.0,0.0768]
[1740419835819,0.01454085,94873.0,94857.0,0.0768]
[1740419836019,0.158122,94863.0,94857.0,0.0768]
[1740419836225,0.26084943,94863.0,94857.0,0.0768]
[1740419836460,0.41084943,94863.0,94849.0,0.0822]
[1740419837291,0.41284943,94863.0,94849.0,0.0822]
[1740419837697,0.42739028,94863.0,94842.0,0.0772]
[1740419837912,0.42739028,94863.0,94836.0,0.0008498]
[1740419838908,0.41284943,94863.0,94836.0,0.0008498]
[1740419839108,0.41184943,94863.0,94836.0,0.0008498]
[1740419839473,0.41784943,94863.0,94836.0,0.0008498]
[1740419839932,0.42484943,94863.0,94862.0,0.001851]
[1740419840147,0.50949937,94863.0,94862.0,0.001851]
[1740419840349,0.42484943,94863.0,94862.0,0.001851]
[1740419843960,0.43939028,94863.0,94862.0,0.001851]
[1740419844222,0.42484943,94863.0,94862.0,0.001851]
[1740419845817,0.42484943,94863.0,94836.0,0.0008498]
[1740419845818,0.158166,94837.0,94836.0,0.0008498]
[1740419846778,0.308166,94837.0,94836.0,0.0008498]
[1740419846990,0.309166,94837.0,94836.0,0.0008498]
[1740419847582,0.151,94837.0,94836.0,0.0008498]
[1740419848338,0.001,94837.0,94836.0,0.0008498]
[1740419849314,0.001,94837.0,94836.0,0.0459498]
[1740419849522,0.001,94837.0,94836.0,0.1238498]
[1740419851516,0.159166,94837.0,94836.0,0.1238498]
[1740419851895,0.001,94837.0,94836.0,0.1238498]
[1740419852849,0.154164,94838.0,94836.0,0.1238498]
[1740419853069,0.158163,94839.0,94836.0,0.1238498]
[1740419853364,0.360857,94851.0,94836.0,0.1238498]
[1740419853365,0.15,94851.0,94836.0,0.1238498]
[1740419853532,0.15,94849.0,94836.0,0.1238498]
[1740419853869,0.15,94844.0,94836.0,0.1238498]
[1740419854455,0.308154,94844.0,94836.0,0.1238498]
[1740419854658,0.001,94838.0,94836.0,0.1238498]
[1740419855030,0.15,94842.0,94836.0,0.1238498]
[1740419855432,0.308166,94837.0,94836.0,0.1238498]
[1740419855859,0.15,94837.0,94836.0,0.1238498]
[1740419856265,0.15,94837.0,94831.0,0.0004]
[1740419856266,0.15,94836.0,94831.0,0.0004]
[1740419856475,0.158199,94817.0,94814.0,0.0150922]
[1740419856672,0.41084469,94817.0,94814.0,0.0150922]
[1740419857389,0.41084469,94817.0,94803.0,0.0008497]
[1740419857390,0.32276185,94804.0,94803.0,0.0008497]
[1740419857591,0.42540754,94804.0,94803.0,0.0008497]
[1740419857791,0.308226,94801.0,94800.0,0.00051]
[1740419858024,0.42541254,94801.0,94800.0,0.0009421]
[1740419858268,0.42541254,94801.0,94800.0,0.0004321]
[1740419859104,0.5109239,94801.0,94800.0,0.0004321]
[1740419859766,0.42541254,94801.0,94800.0,0.0004321]
[1740419860856,0.43041254,94801.0,94800.0,0.0004321]
[1740419861217,0.42741254,94801.0,94800.0,0.0004321]
[1740419861570,0.157,94801.0,94800.0,0.0004321]
[1740419861767,0.155,94801.0,94800.0,0.0004321]
[1740419862013,0.005,94801.0,94800.0,0.0004321]
[1740419862187,0.005,94801.0,94800.0,0.1235321]
[1740419862960,0.008,94801.0,94800.0,0.1235321]
[1740419863173,0.005,94801.0,94800.0,0.1235321]
[1740419864668,0.158201,94816.0,94800.0,0.1235321]
[1740419864890,0.3265,94836.0,94800.0,0.1235321]
[1740419865066,0.002,94801.0,94800.0,0.1235321]
[1740419865531,0.158194,94820.0,94800.0,0.1235321]
[1740419865752,0.007,94816.0,94800.0,0.1235321]
[1740419866111,0.210948,94811.0,94800.0,0.1235321]
[1740419866293,0.10264569,94815.0,94800.0,0.1235321]
[1740419866294,0.15,94812.0,94800.0,0.1235321]
[1740419866504,0.158222,94804.0,94800.0,0.1235321]
[1740419866851,0.210949,94810.0,94800.0,0.1235321]
[1740419866988,0.158216,94807.0,94800.0,0.1235321]
[1740419867636,0.15,94814.0,94800.0,0.1235321]
[1740419867836,0.002,94804.0,94800.0,0.1235321]
[1740419868036,0.15,94814.0,94800.0,0.1235321]
[1740419868283,0.158209,94812.0,94800.0,0.1235321]
[1740419868479,0.003,94807.0,94800.0,0.1235321]
[1740419868678,0.210945,94812.0,94800.0,0.1235321]
[1740419868889,0.15,94813.0,94800.0,0.1235321]
[1740419869037,0.158207,94812.0,94800.0,0.1235321]
[1740419869237,0.15,94809.0,94800.0,0.1235321]
[1740419870251,0.003,94812.0,94800.0,0.1235321]
[1740419870865,0.003,94812.0,94800.0,0.1243822]
[1740419871068,0.153,94812.0,94800.0,0.1243822]
[1740419871284,0.15,94812.0,94800.0,0.1243822]
[1740419871502,0.001,94809.0,94800.0,0.1243822]
[1740419872059,0.15,94810.0,94800.0,0.1243822]
[1740419872258,0.001,94812.0,94800.0,0.1243822]
[1740419872467,0.151,94812.0,94800.0,0.1243822]
[1740419872672,0.154,94812.0,94800.0,0.1243822]
[1740419873608,0.004,94812.0,94800.0,0.1243822]
[1740419873851,0.003,94812.0,94801.0,0.00147654]
[1740419874033,0.003,94812.0,94806.0,0.158216]
[1740419874426,0.003,94812.0,94807.0,0.00147655]
[1740419874642,0.003,94812.0,94800.0,0.1243822]
[1740419874814,0.001,94812.0,94802.0,0.158224]
[1740419875018,0.003,94812.0,94803.0,0.10264569]
[1740419875592,0.003,94812.0,94804.0,0.15822]
[1740419875798,0.0017002,94816.0,94804.0,0.15822]
[1740419875799,0.0017002,94816.0,94804.0,0.10264569]
[1740419876002,0.158204,94814.0,94800.0,0.1243822]
[1740419876214,0.158202,94815.0,94800.0,0.1243822]
[1740419876831,0.1517002,94816.0,94800.0,0.1243822]
[1740419877042,0.158202,94815.0,94800.0,0.1243822]
[1740419877847,0.1517002,94816.0,94800.0,0.1243822]
[1740419878050,0.158204,94815.0,94800.0,0.1243822]
[1740419878473,0.210932,94817.0,94800.0,0.1243822]
[1740419878674,0.158204,94815.0,94800.0,0.1243822]
[1740419879244,0.1582,94817.0,94800.0,0.1243822]
[1740419879448,0.158201,94816.0,94800.0,0.1243822]
[1740419879665,0.158205,94814.0,94800.0,0.1243822]
[1740419880159,0.158206,94813.0,94800.0,0.1243822]
[1740419880370,0.31355169,94829.0,94800.0,0.1243822]
[1740419880570,0.15,94826.0,94800.0,0.1243822]
[1740419880742,0.15822,94805.0,94800.0,0.1243822]
[1740419881168,0.158224,94803.0,94800.0,0.1243822]
[1740419881375,0.15822,94805.0,94800.0,0.12411509]
[1740419881579,0.210947,94811.0,94800.0,0.12411509]
[1740419881937,0.10264569,94825.0,94800.0,0.12411509]
[1740419882138,0.158207,94813.0,94800.0,0.12411509]
[1740419882356,0.158211,94811.0,94800.0,0.12411509]
[1740419882908,0.15,94817.0,94800.0,0.12411509]
[1740419883198,0.10264569,94825.0,94800.0,0.12411509]
[1740419883407,0.158191,94822.0,94800.0,0.28234109]
[1740419883608,0.0017002,94816.0,94800.0,0.12411509]
[1740419884146,0.210937,94815.0,94800.0,0.12411509]
[1740419884353,0.158206,94813.0,94800.0,0.12411509]
[1740419884549,0.0017002,94816.0,94800.0,0.12411509]
[1740419884751,0.158202,94815.0,94800.0,0.12411509]
[1740419885000,0.0027002,94816.0,94800.0,0.12411509]
[1740419885180,0.15,94815.0,94800.0,0.12411509]
[1740419885378,0.210937,94815.0,94800.0,0.12411509]
[1740419885579,0.0017002,94816.0,94800.0,0.12411509]
[1740419886004,0.158224,94803.0,94800.0,0.12411509]
[1740419886216,0.158226,94801.0,94800.0,0.12411509]
[1740419886371,0.10264569,94815.0,94800.0,0.12411509]
[1740419886723,0.158224,94802.0,94800.0,0.12411509]
[1740419886925,0.158226,94801.0,94800.0,0.12411509]
[1740419887564,0.158226,94801.0,94800.0,0.00101509]
[1740419888183,0.159226,94801.0,94800.0,0.00101509]
[1740419889378,0.308226,94801.0,94800.0,0.00101509]
[1740419890192,0.41087169,94801.0,94800.0,0.00101509]
[1740419892094,0.308241,94792.0,94791.0,0.0004]
[1740419892302,0.308241,94792.0,94790.0,0.01055075]
[1740419892303,0.308242,94791.0,94790.0,0.00012955]
[1740419892509,0.41088769,94791.0,94790.0,0.00025923]
[1740419894443,0.41388769,94791.0,94790.0,0.00025923]
[1740419894615,0.47377321,94791.0,94790.0,0.00025923]
[1740419894816,0.41888769,94791.0,94790.0,0.00025923]
[1740419895499,0.008,94791.0,94790.0,0.00025923]
[1740419896006,0.008,94791.0,94790.0,0.23640323]
[1740419896213,0.008,94791.0,94790.0,0.07815923]
[1740419896908,0.005,94791.0,94790.0,0.07815923]
[1740419897109,0.001,94791.0,94790.0,0.07815923]
[1740419897787,0.006,94791.0,94790.0,0.07815923]
[1740419898152,0.001,94791.0,94790.0,0.07815923]
[1740419898358,0.001,94791.0,94790.0,0.07915923]
[1740419898789,0.001,94791.0,94790.0,0.38712564]
[1740419898988,0.001,94791.0,94790.0,0.38564892]
[1740419900212,0.0017002,94805.0,94804.0,0.284621]
[1740419900414,0.0017002,94805.0,94804.0,0.38726669]
[1740419901686,0.0027002,94805.0,94804.0,0.38826669]
[1740419902770,0.0037002,94805.0,94804.0,0.39126669]
[1740419903079,0.15,94842.0,94815.0,0.287802]
[1740419903283,0.15,94842.0,94815.0,0.4838406]
[1740419903484,0.158159,94841.0,94815.0,0.4838406]
[1740419903708,0.15,94840.0,94815.0,0.4838406]
[1740419903877,0.01596233,94835.0,94815.0,0.4838406]
[1740419904290,0.01596233,94835.0,94815.0,0.4908406]
[1740419905528,0.0027002,94816.0,94815.0,0.4938406]
[1740419909527,0.0027002,94816.0,94815.0,0.25156569]
[1740419909727,0.0027002,94816.0,94815.0,0.24224569]
[1740419909980,0.0027002,94816.0,94815.0,0.1396]
[1740419910148,0.0027002,94816.0,94815.0,0.14888]
[1740419910784,0.0027002,94816.0,94815.0,0.1396]
[1740419911549,0.0027002,94816.0,94815.0,0.297802]
[1740419911748,0.0027002,94816.0,94815.0,0.40044769]
[1740419911954,0.0027002,94816.0,94815.0,0.24224569]
[1740419912748,0.0027002,94816.0,94815.0,0.40044769]
[1740419917208,0.158156,94843.0,94825.0,0.158185]
[1740419917432,0.1598546,94844.0,94825.0,0.158185]
[1740419917789,0.1598546,94844.0,94826.0,0.158183]
[1740419917955,0.0016996,94844.0,94840.0,0.210879]
[1740419918167,0.0016996,94844.0,94838.0,0.0761]
[1740419918362,0.0021309,94844.0,94838.0,0.0761]
[1740419919037,0.01812245,94844.0,94829.0,0.158178]
[1740419919213,0.0021309,94844.0,94840.0,0.001]
[1740419919432,0.001,94843.0,94831.0,0.369074]
[1740419919605,0.001,94843.0,94832.0,0.00924]
[1740419919788,0.01790708,94844.0,94838.0,0.003]
[1740419920798,0.17606208,94844.0,94838.0,0.003]
[1740419920999,0.01790708,94844.0,94838.0,0.005]
[1740419921581,0.01790708,94844.0,94838.0,0.002]
[1740419922136,0.17606108,94844.0,94838.0,0.002]
[1740419922448,0.158156,94843.0,94838.0,0.005]
[1740419922644,0.17606108,94844.0,94838.0,0.005]
[1740419923212,0.17606108,94844.0,94838.0,0.003]
[1740419923547,0.158157,94843.0,94838.0,0.004]
[1740419923766,0.01790708,94844.0,94838.0,0.004]
[1740419923951,0.01790708,94844.0,94838.0,0.003]
[1740419924188,0.17606208,94844.0,94838.0,0.003]
[1740419924487,0.01790708,94844.0,94838.0,0.003]
[1740419924689,0.158156,94843.0,94838.0,0.003]
[1740419924839,0.17606108,94844.0,94838.0,0.003]
[1740419925080,0.158158,94842.0,94838.0,0.003]
[1740419925312,0.158156,94843.0,94838.0,0.003]
[1740419925488,0.01790708,94844.0,94838.0,0.004]
[1740419926013,0.17606208,94844.0,94838.0,0.003]
[1740419926211,0.17606208,94844.0,94838.0,0.005]
[1740419926629,0.17606208,94844.0,94838.0,0.003]
[1740419926768,0.158156,94843.0,94832.0,0.00924]
[1740419926968,0.158156,94843.0,94838.0,0.001]
[1740419927169,0.17606108,94844.0,94838.0,0.001]
[1740419928222,0.01790708,94844.0,94838.0,0.004]
[1740419928428,0.01790708,94844.0,94832.0,0.00924]
[1740419928588,0.17606108,94844.0,94832.0,0.00924]
[1740419928799,0.17606108,94844.0,94838.0,0.003]
[1740419929003,0.01790708,94844.0,94838.0,0.003]
[1740419930087,0.17606208,94844.0,94838.0,0.003]
[1740419930290,0.17606208,94844.0,94838.0,0.004]
[1740419930651,0.01790708,94844.0,94838.0,0.004]
[1740419931238,0.01790708,94844.0,94838.0,0.0048497]
[1740419932929,0.17606208,94844.0,94838.0,0.0048497]
[1740419933359,0.01790708,94844.0,94838.0,0.0048497]
[1740419935418,0.0021309,94844.0,94843.0,0.241156]
[1740419936035,0.0021309,94844.0,94843.0,0.34380169]
[1740419936658,0.0021309,94844.0,94843.0,0.39370169]
[1740419937253,0.0021309,94844.0,94843.0,0.23454569]
[1740419937452,0.0021309,94844.0,94843.0,0.24374569]
[1740419937610,0.0021309,94844.0,94843.0,0.40190169]
[1740419938191,0.0021309,94844.0,94843.0,0.40790169]
[1740419938315,0.0021309,94844.0,94843.0,0.40190169]
[1740419938955,0.0021309,94844.0,94843.0,0.40690169]
[1740419939330,0.0021309,94844.0,94843.0,0.41390169]
[1740419939530,0.0021309,94844.0,94843.0,0.40890169]
[1740419939811,0.0021309,94844.0,94843.0,0.41590169]
[1740419939982,0.0021309,94844.0,94843.0,0.25774569]
[1740419940199,0.0021309,94844.0,94843.0,0.41590169]
[1740419943357,0.0021309,94844.0,94843.0,0.25774569]
[1740419943838,0.0021309,94844.0,94843.0,0.41590169]
[1740419944424,0.0021309,94844.0,94843.0,0.1459]
[1740419944599,0.0021309,94844.0,94843.0,0.014]
[1740419944802,0.1602849,94844.0,94843.0,0.014]
[1740419945404,0.1602849,94844.0,94843.0,0.007]
[1740419945618,0.1602849,94844.0,94838.0,0.00020799]
[1740419945619,0.158157,94843.0,94838.0,0.00020799]
[1740419945973,0.0021309,94844.0,94843.0,0.01]
[1740419946122,0.1602849,94844.0,94843.0,0.005]
[1740419946713,0.1602849,94844.0,94843.0,0.009]
[1740419947129,0.0021309,94844.0,94843.0,0.004]
[1740419947535,0.0021309,94844.0,94843.0,0.009]
[1740419949939,0.3102849,94844.0,94843.0,0.009]
[1740419950161,0.30387659,94844.0,94838.0,0.000168]
[1740419950407,0.308162,94839.0,94838.0,0.000168]
[1740419950586,0.41080769,94839.0,94838.0,0.000168]
[1740419950720,0.51345338,94839.0,94838.0,0.000168]
[1740419950926,0.60749423,94839.0,94838.0,0.000168]
[1740419951134,0.158217,94806.0,94801.0,0.0464]
[1740419951766,0.15,94825.0,94801.0,0.0464]
[1740419951968,0.158214,94808.0,94801.0,0.0464]
[1740419952180,0.15,94825.0,94805.0,0.0068501]
[1740419952181,0.159217,94806.0,94805.0,0.0068501]
[1740419952430,0.41186269,94806.0,94805.0,0.00697978]
[1740419952699,0.41186269,94806.0,94805.0,0.01297978]
[1740419953240,0.41186269,94806.0,94805.0,0.00697978]
[1740419953811,0.41086269,94806.0,94805.0,0.00097978]
[1740419954644,0.41186269,94806.0,94805.0,0.00097978]
[1740419955184,0.41286269,94806.0,94805.0,0.00097978]
[1740419955532,0.41586269,94806.0,94805.0,0.00097978]